[Event "*** Titled Tuesday Blitz"]
[Site "Chess.com"]
[Date "2020.04.14"]
[Round "2"]
[White "SGchess01"]
[Black "Neimar24"]
[Result "0-1"]
[WhiteElo "2702"]
[BlackElo "2530"]
[TimeControl "180+1"]
[EndTime "10:16:15 PDT"]
[Termination "Neimar24 won by resignation"]

1. Nf3 {[%clk 0:02:57.1]} 1... Nf6 {[%clk 0:02:59]} 2. g3 {[%clk 0:02:56.9]}
2... e6 {[%clk 0:02:59]} 3. Bg2 {[%clk 0:02:57.8]} 3... d5 {[%clk 0:02:59.2]} 4.
O-O {[%clk 0:02:58.7]} 4... Be7 {[%clk 0:02:59.4]} 5. b3 {[%clk 0:02:59.3]} 5...
O-O {[%clk 0:02:58.2]} 6. Bb2 {[%clk 0:02:59.8]} 6... c6 {[%clk 0:02:58.5]} 7.
c4 {[%clk 0:03:00.4]} 7... b6 {[%clk 0:02:57.9]} 8. d3 {[%clk 0:03:00.6]} 8...
Bb7 {[%clk 0:02:55.9]} 9. Nbd2 {[%clk 0:03:01.2]} 9... c5 {[%clk 0:02:54.1]} 10.
a3 {[%clk 0:03:01.5]} 10... d4 {[%clk 0:02:49.8]} 11. b4 {[%clk 0:02:58.4]}
11... Nbd7 {[%clk 0:02:45.6]} 12. e3 {[%clk 0:02:57]} 12... e5 {[%clk
0:02:42.8]} 13. exd4 {[%clk 0:02:54.5]} 13... exd4 {[%clk 0:02:38.9]} 14. Re1
{[%clk 0:02:52.2]} 14... Re8 {[%clk 0:02:38.4]} 15. Qc2 {[%clk 0:02:50.7]} 15...
Qc7 {[%clk 0:02:37]} 16. Re2 {[%clk 0:02:48.4]} 16... Bf8 {[%clk 0:02:28]} 17.
Rae1 {[%clk 0:02:48.1]} 17... Rxe2 {[%clk 0:02:26.9]} 18. Rxe2 {[%clk 0:02:49]}
18... Re8 {[%clk 0:02:25.9]} 19. Rxe8 {[%clk 0:02:48.4]} 19... Nxe8 {[%clk
0:02:25.7]} 20. bxc5 {[%clk 0:02:41.7]} 20... bxc5 {[%clk 0:02:23.3]} 21. Nb3
{[%clk 0:02:39.2]} 21... Nef6 {[%clk 0:02:09.4]} 22. Bc1 {[%clk 0:02:39.2]}
22... Bd6 {[%clk 0:02:02.9]} 23. Qe2 {[%clk 0:02:38.9]} 23... Kf8 {[%clk
0:02:00.8]} 24. Nfd2 {[%clk 0:02:38.7]} 24... Bxg2 {[%clk 0:01:59.4]} 25. Kxg2
{[%clk 0:02:39.6]} 25... Ne5 {[%clk 0:01:56.7]} 26. f4 {[%clk 0:02:36]} 26...
Neg4 {[%clk 0:01:48.3]} 27. Nf3 {[%clk 0:02:24.7]} 27... Qb7 {[%clk 0:01:30.2]}
28. Qd1 {[%clk 0:02:24.4]} 28... h5 {[%clk 0:01:22]} 29. Bd2 {[%clk 0:02:17.9]}
29... Nh6 {[%clk 0:01:17.4]} 30. Na5 {[%clk 0:02:16.5]} 30... Qa8 {[%clk
0:01:15]} 31. Qa4 {[%clk 0:02:15.1]} 31... Nf5 {[%clk 0:01:12.2]} 32. Qc6 {[%clk
0:02:10.5]} 32... Qe8 {[%clk 0:01:02.1]} 33. Ne5 {[%clk 0:01:42.3]} 33... Bxe5
{[%clk 0:00:56.8]} 34. Qxe8+ {[%clk 0:01:35]} 34... Kxe8 {[%clk 0:00:56.1]} 35.
fxe5 {[%clk 0:01:35.9]} 35... Ng4 {[%clk 0:00:56.4]} 36. Nc6 {[%clk 0:01:35.5]}
36... Kd7 {[%clk 0:00:53.8]} 37. Nxa7 {[%clk 0:01:35.2]} 37... Nxe5 {[%clk
0:00:53.9]} 38. a4 {[%clk 0:01:31.7]} 38... Nxd3 {[%clk 0:00:53.7]} 39. Kf3
{[%clk 0:01:31.8]} 39... Nb2 {[%clk 0:00:53.2]} 40. Ke4 {[%clk 0:01:30.4]} 40...
Ke6 {[%clk 0:00:39.3]} 41. Nb5 {[%clk 0:01:26.1]} 41... Nxc4 {[%clk 0:00:37.4]}
42. Nc7+ {[%clk 0:01:23.2]} 42... Kd7 {[%clk 0:00:36.6]} 43. Bf4 {[%clk
0:01:23.1]} 43... Nfd6+ {[%clk 0:00:35]} 44. Kd5 {[%clk 0:01:23.3]} 44... Kxc7
{[%clk 0:00:34.4]} 45. Kxc5 {[%clk 0:01:23.6]} 45... d3 {[%clk 0:00:34.8]} 46.
a5 {[%clk 0:01:22]} 46... d2 {[%clk 0:00:34.3]} 0-1

[Event "*** Titled Tuesday Blitz"]
[Site "Chess.com"]
[Date "2020.04.14"]
[Round "2"]
[White "nubair1198"]
[Black "VolodymyrMolyboha"]
[Result "0-1"]
[WhiteElo "2814"]
[BlackElo "2402"]
[TimeControl "180+1"]
[EndTime "10:16:15 PDT"]
[Termination "VolodymyrMolyboha won by resignation"]

1. d4 {[%clk 0:03:00.9]} 1... g6 {[%clk 0:02:59.4]} 2. c4 {[%clk 0:02:58.3]}
2... Bg7 {[%clk 0:02:59.5]} 3. e4 {[%clk 0:02:58.1]} 3... Nc6 {[%clk 0:02:58.9]}
4. Ne2 {[%clk 0:02:56.7]} 4... e5 {[%clk 0:02:58.9]} 5. Be3 {[%clk 0:02:56.1]}
5... d6 {[%clk 0:02:58.3]} 6. Nbc3 {[%clk 0:02:52.5]} 6... f5 {[%clk 0:02:58.4]}
7. f3 {[%clk 0:02:52.6]} 7... Nf6 {[%clk 0:02:57.5]} 8. Qd2 {[%clk 0:02:51.5]}
8... fxe4 {[%clk 0:02:56.9]} 9. fxe4 {[%clk 0:02:50.8]} 9... exd4 {[%clk
0:02:56.6]} 10. Nxd4 {[%clk 0:02:50.7]} 10... O-O {[%clk 0:02:54.8]} 11. Be2
{[%clk 0:02:48.9]} 11... Re8 {[%clk 0:02:50.3]} 12. Nxc6 {[%clk 0:02:48.6]}
12... bxc6 {[%clk 0:02:49.9]} 13. O-O {[%clk 0:02:48.2]} 13... Rb8 {[%clk
0:02:46.4]} 14. Bxa7 {[%clk 0:02:46]} 14... Rb7 {[%clk 0:02:32.1]} 15. Bd4
{[%clk 0:02:46.1]} 15... c5 {[%clk 0:02:32.1]} 16. Bxf6 {[%clk 0:02:43.1]} 16...
Bxf6 {[%clk 0:02:31.8]} 17. Bd3 {[%clk 0:02:36.1]} 17... Be5 {[%clk 0:02:28.8]}
18. Rf4 {[%clk 0:02:11.7]} 18... Be6 {[%clk 0:02:23.5]} 19. Raf1 {[%clk
0:02:07.4]} 19... Qe7 {[%clk 0:02:18.7]} 20. R4f3 {[%clk 0:02:02.1]} 20... Qg7
{[%clk 0:02:16.2]} 21. Kh1 {[%clk 0:01:58.2]} 21... Reb8 {[%clk 0:02:09.4]} 22.
Nd1 {[%clk 0:01:53.7]} 22... Bxb2 {[%clk 0:02:05.8]} 23. Nxb2 {[%clk 0:01:53.5]}
23... Rxb2 {[%clk 0:02:05.4]} 24. Qg5 {[%clk 0:01:54.1]} 24... h6 {[%clk
0:02:00.5]} 25. Qf6 {[%clk 0:01:44.5]} 25... Re8 {[%clk 0:01:44.5]} 26. e5
{[%clk 0:01:39]} 26... Rxa2 {[%clk 0:01:32.2]} 27. Bxg6 {[%clk 0:01:38.3]} 27...
Re7 {[%clk 0:01:24.7]} 28. Rg3 {[%clk 0:01:38.1]} 28... Bxc4 {[%clk 0:01:11.2]}
29. exd6 {[%clk 0:01:02.6]} 29... Qxf6 {[%clk 0:01:06]} 30. Bd3+ {[%clk
0:01:00.1]} 30... Kh8 {[%clk 0:00:58.9]} 31. Rxf6 {[%clk 0:00:57.2]} 31... Re1+
{[%clk 0:00:57.5]} 32. Bf1 {[%clk 0:00:53.5]} 32... Rxf1+ {[%clk 0:00:51]} 33.
Rxf1 {[%clk 0:00:53.1]} 33... Bxf1 {[%clk 0:00:51]} 34. d7 {[%clk 0:00:42.3]}
34... Rd2 {[%clk 0:00:49.2]} 35. Rf3 {[%clk 0:00:42.5]} 35... Bxg2+ {[%clk
0:00:47.5]} 0-1

[Event "*** Titled Tuesday Blitz"]
[Site "Chess.com"]
[Date "2020.04.14"]
[Round "2"]
[White "DACF2905"]
[Black "axvesik"]
[Result "0-1"]
[WhiteElo "2157"]
[BlackElo "2427"]
[TimeControl "180+1"]
[EndTime "10:16:15 PDT"]
[Termination "axvesik won by resignation"]

1. d4 {[%clk 0:03:00.9]} 1... Nf6 {[%clk 0:02:59.8]} 2. c4 {[%clk 0:03:00.1]}
2... e6 {[%clk 0:02:59.6]} 3. Nf3 {[%clk 0:02:59.6]} 3... d5 {[%clk 0:02:58.1]}
4. g3 {[%clk 0:02:58.8]} 4... dxc4 {[%clk 0:02:58.1]} 5. Qa4+ {[%clk 0:02:57.5]}
5... Nbd7 {[%clk 0:02:57.6]} 6. Qxc4 {[%clk 0:02:56.7]} 6... b6 {[%clk
0:02:52.3]} 7. Bg2 {[%clk 0:02:55.5]} 7... Bb7 {[%clk 0:02:52.5]} 8. O-O {[%clk
0:02:55.5]} 8... c5 {[%clk 0:02:51.8]} 9. dxc5 {[%clk 0:02:51.4]} 9... Bxc5
{[%clk 0:02:50.4]} 10. Nc3 {[%clk 0:02:48.5]} 10... O-O {[%clk 0:02:49.4]} 11.
Bg5 {[%clk 0:02:47.4]} 11... h6 {[%clk 0:02:45.7]} 12. Bxf6 {[%clk 0:02:37]}
12... Nxf6 {[%clk 0:02:45.1]} 13. Rad1 {[%clk 0:02:35.6]} 13... Qe7 {[%clk
0:02:44.7]} 14. a3 {[%clk 0:02:24.5]} 14... Rac8 {[%clk 0:02:39.4]} 15. Qd3
{[%clk 0:02:21]} 15... Rfd8 {[%clk 0:02:37.9]} 16. Qb1 {[%clk 0:02:20.5]} 16...
Qc7 {[%clk 0:02:16.9]} 17. Nb5 {[%clk 0:02:03.7]} 17... Qb8 {[%clk 0:02:16.2]}
18. Rxd8+ {[%clk 0:02:02.3]} 18... Rxd8 {[%clk 0:02:16]} 19. b4 {[%clk
0:02:01.1]} 19... Be7 {[%clk 0:02:14.8]} 20. Rd1 {[%clk 0:01:59.5]} 20... a6
{[%clk 0:02:08]} 21. Nc3 {[%clk 0:01:55.9]} 21... Nd5 {[%clk 0:02:05.2]} 22.
Nxd5 {[%clk 0:01:53.5]} 22... Bxd5 {[%clk 0:02:05.3]} 23. e4 {[%clk 0:01:48.2]}
23... Bb7 {[%clk 0:02:04.7]} 24. Rxd8+ {[%clk 0:01:30.5]} 24... Qxd8 {[%clk
0:02:03.3]} 25. Qc2 {[%clk 0:01:26.5]} 25... a5 {[%clk 0:01:56.5]} 26. bxa5
{[%clk 0:01:16.3]} 26... bxa5 {[%clk 0:01:56.3]} 27. a4 {[%clk 0:01:14.3]} 27...
Qd6 {[%clk 0:01:50.6]} 28. e5 {[%clk 0:01:10.4]} 28... Qa3 {[%clk 0:01:40.3]}
29. Qc7 {[%clk 0:00:46.2]} 29... Qa1+ {[%clk 0:01:23.3]} 30. Bf1 {[%clk
0:00:29.6]} 30... Bxf3 {[%clk 0:01:22.6]} 31. Qxe7 {[%clk 0:00:28.2]} 31... Be2
{[%clk 0:01:15.1]} 32. Qd8+ {[%clk 0:00:21.3]} 32... Kh7 {[%clk 0:01:14]} 0-1

[Event "*** Titled Tuesday Blitz"]
[Site "Chess.com"]
[Date "2020.04.14"]
[Round "2"]
[White "shyam"]
[Black "AsaHoffmann"]
[Result "1-0"]
[WhiteElo "2632"]
[BlackElo "2303"]
[TimeControl "180+1"]
[EndTime "10:16:18 PDT"]
[Termination "shyam won by resignation"]

1. e4 {[%clk 0:03:00.9]} 1... d6 {[%clk 0:02:58.5]} 2. d4 {[%clk 0:02:59.1]}
2... Nf6 {[%clk 0:02:57.6]} 3. Nc3 {[%clk 0:02:58.6]} 3... c6 {[%clk 0:02:54.9]}
4. f4 {[%clk 0:02:58]} 4... Qa5 {[%clk 0:02:53.9]} 5. Bd3 {[%clk 0:02:47]} 5...
e5 {[%clk 0:02:52.9]} 6. Nf3 {[%clk 0:02:41.1]} 6... exd4 {[%clk 0:02:52.2]} 7.
Nxd4 {[%clk 0:02:42]} 7... Qb6 {[%clk 0:02:51.7]} 8. Nb3 {[%clk 0:02:35.4]} 8...
a5 {[%clk 0:02:50.3]} 9. a4 {[%clk 0:02:34.2]} 9... Na6 {[%clk 0:02:49.2]} 10.
Qe2 {[%clk 0:02:34.3]} 10... Nb4 {[%clk 0:02:47.9]} 11. Be3 {[%clk 0:02:32.5]}
11... Nxd3+ {[%clk 0:02:47.2]} 12. Qxd3 {[%clk 0:02:31.3]} 12... Qc7 {[%clk
0:02:46.2]} 13. O-O-O {[%clk 0:02:29.7]} 13... Be7 {[%clk 0:02:45.1]} 14. h3
{[%clk 0:02:26.2]} 14... O-O {[%clk 0:02:42.1]} 15. g4 {[%clk 0:02:26]} 15...
Ne8 {[%clk 0:02:32.9]} 16. g5 {[%clk 0:02:23.3]} 16... b6 {[%clk 0:02:17.3]} 17.
Nd4 {[%clk 0:02:18.8]} 17... Ba6 {[%clk 0:02:14.1]} 18. Qd2 {[%clk 0:02:17.7]}
18... g6 {[%clk 0:02:07.1]} 19. f5 {[%clk 0:02:13.5]} 19... c5 {[%clk
0:01:57.7]} 20. Nd5 {[%clk 0:02:07.2]} 20... Qb7 {[%clk 0:01:51.4]} 21. Nc6
{[%clk 0:02:01]} 21... Bd8 {[%clk 0:01:46.1]} 22. Nxd8 {[%clk 0:01:59.6]} 22...
Rxd8 {[%clk 0:01:44.9]} 23. h4 {[%clk 0:01:55]} 23... Bc4 {[%clk 0:01:43]} 24.
h5 {[%clk 0:01:53.8]} 24... Bxd5 {[%clk 0:01:42.6]} 25. exd5 {[%clk 0:01:54.7]}
25... gxf5 {[%clk 0:01:37]} 26. Rdg1 {[%clk 0:01:25.3]} 26... Qd7 {[%clk
0:01:35.7]} 27. b3 {[%clk 0:01:19.2]} 27... c4 {[%clk 0:01:33.3]} 28. g6 {[%clk
0:01:17.8]} 28... cxb3 {[%clk 0:01:23.7]} 29. cxb3 {[%clk 0:01:15.3]} 29... f6
{[%clk 0:01:10.1]} 30. Bh6 {[%clk 0:01:07.8]} 30... Nc7 {[%clk 0:01:01.9]} 31.
gxh7+ {[%clk 0:01:04.8]} 31... Kh8 {[%clk 0:00:47]} 32. Bxf8 {[%clk 0:00:56.9]}
32... Rxf8 {[%clk 0:00:46.2]} 33. Rg8+ {[%clk 0:00:57.3]} 33... Rxg8 {[%clk
0:00:44.9]} 34. hxg8=Q+ {[%clk 0:00:58.2]} 34... Kxg8 {[%clk 0:00:44.3]} 35.
Rg1+ {[%clk 0:00:58.2]} 35... Kf7 {[%clk 0:00:42.4]} 36. h6 {[%clk 0:00:57.8]}
36... b5 {[%clk 0:00:33.9]} 37. Rg7+ {[%clk 0:00:56.9]} 1-0

[Event "*** Titled Tuesday Blitz"]
[Site "Chess.com"]
[Date "2020.04.14"]
[Round "2"]
[White "almo64"]
[Black "M1711"]
[Result "1-0"]
[WhiteElo "2808"]
[BlackElo "2549"]
[TimeControl "180+1"]
[EndTime "10:16:23 PDT"]
[Termination "almo64 won by resignation"]

1. e4 {[%clk 0:03:00.9]} 1... e5 {[%clk 0:02:57.1]} 2. Nf3 {[%clk 0:03:00.7]}
2... Nc6 {[%clk 0:02:55.1]} 3. Bb5 {[%clk 0:02:59.8]} 3... a6 {[%clk 0:02:54.1]}
4. Ba4 {[%clk 0:02:59]} 4... Nf6 {[%clk 0:02:51.5]} 5. O-O {[%clk 0:02:56.1]}
5... Be7 {[%clk 0:02:50.4]} 6. Bxc6 {[%clk 0:02:55.7]} 6... dxc6 {[%clk
0:02:49.8]} 7. d3 {[%clk 0:02:55.7]} 7... Nd7 {[%clk 0:02:48.2]} 8. Be3 {[%clk
0:02:53.7]} 8... O-O {[%clk 0:02:46.1]} 9. Nc3 {[%clk 0:02:53.8]} 9... Bd6
{[%clk 0:02:44.9]} 10. Nd2 {[%clk 0:02:53.3]} 10... Re8 {[%clk 0:02:42.9]} 11.
Ne2 {[%clk 0:02:52]} 11... c5 {[%clk 0:02:40.8]} 12. Kh1 {[%clk 0:02:49.2]}
12... Nb8 {[%clk 0:02:38]} 13. f4 {[%clk 0:02:48.9]} 13... Nc6 {[%clk
0:02:32.1]} 14. f5 {[%clk 0:02:47.5]} 14... Be7 {[%clk 0:02:17.8]} 15. Nf3
{[%clk 0:02:45]} 15... b6 {[%clk 0:02:01.8]} 16. c3 {[%clk 0:02:41.2]} 16... a5
{[%clk 0:01:59.4]} 17. Qc2 {[%clk 0:02:40.1]} 17... a4 {[%clk 0:01:42.2]} 18.
Rad1 {[%clk 0:02:39.5]} 18... a3 {[%clk 0:01:41.2]} 19. b3 {[%clk 0:02:39]}
19... b5 {[%clk 0:01:27.7]} 20. g4 {[%clk 0:02:31.4]} 20... b4 {[%clk
0:01:23.7]} 21. c4 {[%clk 0:02:31.6]} 21... Nd4 {[%clk 0:01:18.3]} 22. Nexd4
{[%clk 0:02:31]} 22... cxd4 {[%clk 0:01:16.2]} 23. Bc1 {[%clk 0:02:30.5]} 23...
h6 {[%clk 0:01:09.2]} 24. Rd2 {[%clk 0:02:28.7]} 24... Bg5 {[%clk 0:01:07.2]}
25. Rg2 {[%clk 0:02:25.1]} 25... f6 {[%clk 0:01:01.9]} 26. Bxg5 {[%clk
0:02:00.7]} 26... hxg5 {[%clk 0:01:01.4]} 27. h4 {[%clk 0:01:59.6]} 27... Kf7
{[%clk 0:00:45]} 28. hxg5 {[%clk 0:01:58.9]} 28... fxg5 {[%clk 0:00:45.9]} 29.
Rh2 {[%clk 0:01:52.2]} 29... c5 {[%clk 0:00:31.7]} 30. Qd2 {[%clk 0:01:52]}
30... Ra6 {[%clk 0:00:23.7]} 31. Nxg5+ {[%clk 0:01:50.5]} 31... Kg8 {[%clk
0:00:22.8]} 32. Nf3 {[%clk 0:01:46.2]} 32... Rf8 {[%clk 0:00:14.2]} 33. Kg2
{[%clk 0:01:39.7]} 33... Qd6 {[%clk 0:00:06.3]} 34. Ng5 {[%clk 0:01:32.4]} 34...
Rf6 {[%clk 0:00:03.4]} 35. Rfh1 {[%clk 0:01:31.8]} 35... Rh6 {[%clk 0:00:03.5]}
36. Rxh6 {[%clk 0:01:31]} 36... gxh6 {[%clk 0:00:04.4]} 37. Nf3 {[%clk
0:01:30.9]} 37... Kg7 {[%clk 0:00:04.8]} 38. g5 {[%clk 0:01:30.5]} 38... hxg5
{[%clk 0:00:04.4]} 39. Qxg5+ {[%clk 0:01:29.9]} 39... Kf8 {[%clk 0:00:01.2]} 40.
Rh8+ {[%clk 0:01:29]} 1-0

[Event "*** Titled Tuesday Blitz"]
[Site "Chess.com"]
[Date "2020.04.14"]
[Round "2"]
[White "jonaszmb"]
[Black "paradise10"]
[Result "1-0"]
[WhiteElo "2423"]
[BlackElo "2748"]
[TimeControl "180+1"]
[EndTime "10:16:25 PDT"]
[Termination "jonaszmb won by resignation"]

1. d4 {[%clk 0:03:00.9]} 1... d5 {[%clk 0:02:59.3]} 2. c4 {[%clk 0:03:01]} 2...
dxc4 {[%clk 0:02:58.6]} 3. e4 {[%clk 0:03:00.6]} 3... e5 {[%clk 0:02:58]} 4. Nf3
{[%clk 0:03:00.3]} 4... exd4 {[%clk 0:02:57.6]} 5. Bxc4 {[%clk 0:03:00.5]} 5...
Bb4+ {[%clk 0:02:57.5]} 6. Nbd2 {[%clk 0:02:57.2]} 6... Ne7 {[%clk 0:02:56.5]}
7. O-O {[%clk 0:02:56.9]} 7... O-O {[%clk 0:02:56.3]} 8. a3 {[%clk 0:02:49.8]}
8... Bxd2 {[%clk 0:02:53.8]} 9. Qxd2 {[%clk 0:02:42.3]} 9... Nbc6 {[%clk
0:02:54.7]} 10. b4 {[%clk 0:02:38]} 10... a6 {[%clk 0:02:53.8]} 11. Bb2 {[%clk
0:02:36.9]} 11... Ng6 {[%clk 0:02:48.6]} 12. Nxd4 {[%clk 0:02:36.1]} 12... Nxd4
{[%clk 0:02:45.7]} 13. Qxd4 {[%clk 0:02:35.3]} 13... Qxd4 {[%clk 0:02:43]} 14.
Bxd4 {[%clk 0:02:36.2]} 14... Be6 {[%clk 0:02:40.9]} 15. Rac1 {[%clk 0:02:33.5]}
15... Rfd8 {[%clk 0:02:39.2]} 16. Bxe6 {[%clk 0:02:26.3]} 16... fxe6 {[%clk
0:02:33.1]} 17. Be3 {[%clk 0:02:26]} 17... c6 {[%clk 0:02:31.3]} 18. Rfd1 {[%clk
0:02:24.7]} 18... e5 {[%clk 0:02:30.1]} 19. Bb6 {[%clk 0:02:19.4]} 19... Rxd1+
{[%clk 0:02:29.4]} 20. Rxd1 {[%clk 0:02:20.3]} 20... Nf8 {[%clk 0:02:28.6]} 21.
f3 {[%clk 0:02:19.5]} 21... Kf7 {[%clk 0:02:27.3]} 22. Kf2 {[%clk 0:02:10.6]}
22... g5 {[%clk 0:02:24.9]} 23. Ke3 {[%clk 0:02:04.2]} 23... h6 {[%clk
0:02:23.4]} 24. Bc5 {[%clk 0:01:48.8]} 24... Re8 {[%clk 0:01:53.1]} 25. g3
{[%clk 0:01:34.4]} 25... Kf6 {[%clk 0:01:31.4]} 26. a4 {[%clk 0:01:13.5]} 26...
Ne6 {[%clk 0:01:25.4]} 27. Bb6 {[%clk 0:01:11.2]} 27... Ke7 {[%clk 0:01:14.2]}
28. a5 {[%clk 0:01:10]} 28... Rc8 {[%clk 0:01:10.9]} 29. Bc5+ {[%clk 0:01:03.9]}
29... Nxc5 {[%clk 0:01:00]} 30. bxc5 {[%clk 0:01:04.8]} 30... Rd8 {[%clk
0:01:00.7]} 31. Rxd8 {[%clk 0:01:02.1]} 31... Kxd8 {[%clk 0:01:00.5]} 32. f4
{[%clk 0:01:02.5]} 32... Ke7 {[%clk 0:00:54.2]} 33. fxg5 {[%clk 0:00:55.9]}
33... hxg5 {[%clk 0:00:52.5]} 34. Kf3 {[%clk 0:00:50.2]} 34... Kf6 {[%clk
0:00:47.3]} 35. Kg4 {[%clk 0:00:48.6]} 35... Kg6 {[%clk 0:00:46.6]} 36. h3
{[%clk 0:00:45.8]} 36... Kf6 {[%clk 0:00:41.3]} 37. Kh5 {[%clk 0:00:44.7]} 1-0

[Event "*** Titled Tuesday Blitz"]
[Site "Chess.com"]
[Date "2020.04.14"]
[Round "2"]
[White "ChessQueen"]
[Black "Zq1"]
[Result "1-0"]
[WhiteElo "2801"]
[BlackElo "2554"]
[TimeControl "180+1"]
[EndTime "10:16:26 PDT"]
[Termination "ChessQueen won by resignation"]

1. Nf3 {[%clk 0:03:00.9]} 1... d5 {[%clk 0:02:56.4]} 2. g3 {[%clk 0:03:00.5]}
2... Nf6 {[%clk 0:02:54.8]} 3. Bg2 {[%clk 0:03:00]} 3... c6 {[%clk 0:02:55.1]}
4. O-O {[%clk 0:03:00]} 4... Bf5 {[%clk 0:02:55.2]} 5. c4 {[%clk 0:02:59.9]}
5... e6 {[%clk 0:02:54.5]} 6. d3 {[%clk 0:02:48.7]} 6... h6 {[%clk 0:02:53.2]}
7. Qb3 {[%clk 0:02:45.8]} 7... Qb6 {[%clk 0:02:52.1]} 8. Qc2 {[%clk 0:02:46]}
8... Nbd7 {[%clk 0:02:49.8]} 9. Nbd2 {[%clk 0:02:42.3]} 9... Be7 {[%clk
0:02:47.6]} 10. Rb1 {[%clk 0:02:42.5]} 10... a5 {[%clk 0:02:45.9]} 11. b3 {[%clk
0:02:41]} 11... O-O {[%clk 0:02:44.2]} 12. a3 {[%clk 0:02:40.5]} 12... Rfc8
{[%clk 0:02:40.5]} 13. Bb2 {[%clk 0:02:38.8]} 13... Bh7 {[%clk 0:02:39.2]} 14.
e4 {[%clk 0:02:34.5]} 14... dxe4 {[%clk 0:02:32.5]} 15. dxe4 {[%clk 0:02:34.8]}
15... Nc5 {[%clk 0:02:27.9]} 16. Rfe1 {[%clk 0:02:29.8]} 16... Ng4 {[%clk
0:02:01.3]} 17. Re2 {[%clk 0:02:21.8]} 17... Bf6 {[%clk 0:01:56.9]} 18. b4
{[%clk 0:02:11.5]} 18... axb4 {[%clk 0:01:49.1]} 19. axb4 {[%clk 0:02:11.4]}
19... Na4 {[%clk 0:01:24.9]} 20. Bxf6 {[%clk 0:02:11.3]} 20... Nxf6 {[%clk
0:01:20]} 21. c5 {[%clk 0:02:11.8]} 21... Qa6 {[%clk 0:01:16.8]} 22. Re3 {[%clk
0:02:07.4]} 22... b6 {[%clk 0:01:12.3]} 23. Nc4 {[%clk 0:01:56.6]} 23... bxc5
{[%clk 0:01:09.1]} 24. bxc5 {[%clk 0:01:46.6]} 24... Rd8 {[%clk 0:00:43.3]} 25.
Nb6 {[%clk 0:01:38.1]} 25... Nxb6 {[%clk 0:00:37.3]} 26. cxb6 {[%clk 0:01:39]}
26... Qb7 {[%clk 0:00:29.3]} 27. Ne5 {[%clk 0:01:34]} 27... Rac8 {[%clk
0:00:24.3]} 28. Ra3 {[%clk 0:01:32.6]} 28... Ra8 {[%clk 0:00:20.7]} 29. Rc3
{[%clk 0:01:31.1]} 29... c5 {[%clk 0:00:17.6]} 30. Rxc5 {[%clk 0:01:25.9]} 30...
Nxe4 {[%clk 0:00:16.9]} 31. Rc7 {[%clk 0:01:21.8]} 31... Qd5 {[%clk 0:00:16.9]}
32. Nxf7 {[%clk 0:01:20.6]} 32... Rf8 {[%clk 0:00:11.7]} 33. Nxh6+ {[%clk
0:01:18.8]} 33... gxh6 {[%clk 0:00:10.5]} 34. Rxh7 {[%clk 0:01:18.8]} 34... Rxf2
{[%clk 0:00:06.6]} 35. Qxf2 {[%clk 0:01:17.5]} 35... Nxf2 {[%clk 0:00:03.4]} 36.
Bxd5 {[%clk 0:01:17.5]} 36... Nh3+ {[%clk 0:00:03.1]} 37. Kg2 {[%clk 0:01:17.9]}
37... exd5 {[%clk 0:00:01.8]} 38. Ra7 {[%clk 0:01:16.9]} 1-0

[Event "*** Titled Tuesday Blitz"]
[Site "Chess.com"]
[Date "2020.04.14"]
[Round "2"]
[White "White_Ghost"]
[Black "Morshynska"]
[Result "1-0"]
[WhiteElo "2514"]
[BlackElo "2086"]
[TimeControl "180+1"]
[EndTime "10:16:29 PDT"]
[Termination "White_Ghost won by resignation"]

1. d4 {[%clk 0:02:59.1]} 1... Nf6 {[%clk 0:02:58.9]} 2. c4 {[%clk 0:02:58.8]}
2... e6 {[%clk 0:02:58.7]} 3. Nf3 {[%clk 0:02:57.8]} 3... b6 {[%clk 0:02:58.6]}
4. g3 {[%clk 0:02:57.7]} 4... Bb7 {[%clk 0:02:58.5]} 5. Bg2 {[%clk 0:02:57.5]}
5... Be7 {[%clk 0:02:58.8]} 6. O-O {[%clk 0:02:57.5]} 6... O-O {[%clk
0:02:58.8]} 7. Nc3 {[%clk 0:02:56.5]} 7... Ne4 {[%clk 0:02:58.8]} 8. Qd3 {[%clk
0:02:54.8]} 8... Nxc3 {[%clk 0:02:56.6]} 9. Qxc3 {[%clk 0:02:49.7]} 9... f5
{[%clk 0:02:55.8]} 10. Bd2 {[%clk 0:02:37.3]} 10... Bf6 {[%clk 0:02:53.3]} 11.
Ne5 {[%clk 0:02:28]} 11... Bxg2 {[%clk 0:02:47.9]} 12. Kxg2 {[%clk 0:02:28.9]}
12... c6 {[%clk 0:02:33.1]} 13. Nf3 {[%clk 0:02:24.7]} 13... c5 {[%clk
0:02:18.5]} 14. Qd3 {[%clk 0:02:20.5]} 14... d5 {[%clk 0:01:50.3]} 15. dxc5
{[%clk 0:02:13.7]} 15... bxc5 {[%clk 0:01:45.4]} 16. cxd5 {[%clk 0:02:00.7]}
16... exd5 {[%clk 0:01:25.6]} 17. Qxf5 {[%clk 0:01:57.3]} 17... Bxb2 {[%clk
0:01:20.1]} 18. Qe6+ {[%clk 0:01:56.9]} 18... Kh8 {[%clk 0:01:19.6]} 19. Rab1
{[%clk 0:01:57.1]} 19... Bf6 {[%clk 0:01:13.2]} 20. Rb7 {[%clk 0:01:51.3]} 20...
d4 {[%clk 0:01:03.5]} 21. Rc1 {[%clk 0:01:44.2]} 21... Qc8 {[%clk 0:00:57.5]}
22. Qb3 {[%clk 0:01:02.4]} 22... Nd7 {[%clk 0:00:38.6]} 23. Bf4 {[%clk
0:00:55.8]} 23... Be7 {[%clk 0:00:11.7]} 24. Rc7 {[%clk 0:00:50.9]} 24... Qd8
{[%clk 0:00:11.6]} 25. Qb7 {[%clk 0:00:48.4]} 25... Rxf4 {[%clk 0:00:08.1]} 26.
Rxd7 {[%clk 0:00:45]} 1-0